[Event "45th Guernsey Open 2019"]
[Site "Vale"]
[Date "2019.10.23"]
[Round "4.11"]
[White "Dennis, Nigel W"]
[Black "Hamann, Marcus"]
[Result "1/2-1/2"]
[ECO "B34"]
[WhiteElo "1768"]
[BlackElo "1802"]
[Annotator "NA"]
[PlyCount "55"]
[EventDate "2019.10.20"]
[EventType "swiss"]
[EventCountry "GCI"]
[SourceTitle "playchess.com"]
[Source "ChessBase"]
[SourceQuality "1"]
[TimeControl "40/6000+30:2400+30"]

1. e4 {[%emt 0:00:00]} c5 {[%emt 0:00:00]} 2. Nf3 {[%emt 0:00:00]} Nc6 {[%emt 0:00:00]} 3. d4 {[%emt 0:00:00]} cxd4 {[%emt 0:00:00]} 4. Nxd4 {[%emt 0:00:00]} Nf6 {[%emt 0:00:00]} 5. Nc3 {[%emt 0:00:03]} e5 {[%emt 0:00:06]} 6. Ndb5 {[%emt 0:01:43]} d6 $11 {[%emt 0:01:42]} 7. Bg5 a6 {[%emt 0:00:11]} 8. Na3 {[%emt 0:00:39]} Be7 {[%emt 0:02:14]} 9. Bxf6 {[%emt 0:02:44]} Bxf6 {[%emt 0:00:18]} 10. Nd5 {[%emt 0:00:36]} b5 {[%emt 0:05:10]} 11. c3 {[%emt 0:02:41]} O-O {[%emt 0:02:10]} 12. Nc2 {[%emt 0:00:55]} Bg5 {[%emt 0:03:06]} 13. Nce3 {[%emt 0:00:59]} Be6 {[%emt 0:01:53]} 14. Be2 {[%emt 0:01:20]} Ne7 {[%emt 0:03:43]} 15. O-O {[%emt 0:04:38]} Bxe3 {[%emt 0:05:02]} 16. Nxe3 {[%emt 0:00:45]} d5 {[%emt 0:01:13]} 17. exd5 {[%emt 0:00:13]} Nxd5 {[%emt 0:00:27]} 18. Nxd5 {[%emt 0:00:17]} Qxd5 {[%emt 0:00:18]} 19. Qxd5 {[%emt 0:06:16]} Bxd5 {[%emt 0:00:21]} 20. Rfd1 {[%emt 0:00:21]} Rad8 {[%emt 0:03:38]} 21. Kf1 {[%emt 0:05:42]} f5 {[%emt 0:22:18]} 22. a4 {[%emt 0:02:37]} Bc4 {[%emt 0:06:20]} 23. axb5 {[%emt 0:05:57]} axb5 {[%emt 0:06:54]} 24. Ke1 {[%emt 0:07:37]} Kf7 {[%emt 0:04:07]} 25. b4 {[%emt 0:04:05]} Bxe2 {[%emt 0:03:10]} 26. Kxe2 {[%emt 0:00:37]} Rxd1 {[%emt 0:01:08]} 27. Rxd1 {[%emt 0:00:12]} Ke6 {[%emt 0:00:20]} 28. g3 1/2-1/2

[Event "45th Guernsey Open 2019"]
[Site "Vale"]
[Date "2019.10.24"]
[Round "5.1"]
[White "Hebden, Mark L"]
[Black "Baker, Chris W"]
[Result "1-0"]
[ECO "D00"]
[WhiteElo "2427"]
[BlackElo "2245"]
[Annotator "NA"]
[PlyCount "65"]
[EventDate "2019.10.20"]
[EventType "swiss"]
[EventCountry "GCI"]
[SourceTitle "playchess.com"]
[Source "ChessBase"]
[SourceQuality "1"]
[TimeControl "40/6000+30:2400+30"]

1. d4 {[%emt 0:00:00]} d5 {[%emt 0:00:00]} 2. Nc3 {[%emt 0:01:42]} Nf6 {[%emt 0:06:04]} 3. Bf4 {[%emt 0:00:28]} a6 {[%emt 0:04:33]} 4. e3 {[%emt 0:00:39]} e6 {[%emt 0:05:56]} 5. g4 {[%emt 0:05:11]} c5 {[%emt 0:05:55]} 6. g5 {[%emt 0:00:47]} Nfd7 {[%emt 0:01:35]} 7. h4 {[%emt 0:01:26]} Nc6 {[%emt 0:03:41]} 8. Nf3 {[%emt 0:01:48]} Qa5 {[%emt 0:05:14]} 9. a3 {[%emt 0:01:32]} b5 {[%emt 0:04:43]} 10. Be2 {[%emt 0:05:03]} b4 {[%emt 0:08:24]} 11. axb4 {[%emt 0:01:57]} Qxb4 {[%emt 0:00:12]} 12. Ra2 {[%emt 0:03:54]} cxd4 {[%emt 0:02:39]} 13. exd4 {[%emt 0:01:57]} Bb7 {[%emt 0:03:14]} 14. O-O {[%emt 0:03:00]} Bc5 {[%emt 0:11:28]} 15. Nb5 {[%emt 0:12:11]} axb5 {[%emt 0:15:07]} 16. c3 {[%emt 0:00:25]} Rxa2 {[%emt 0:00:13]} 17. cxb4 {[%emt 0:00:07]} Bxb4 {[%emt 0:00:26]} 18. Bxb5 {[%emt 0:00:45]} Ra5 {[%emt 0:01:26]} 19. Bxc6 {[%emt 0:04:21]} Bxc6 {[%emt 0:00:11]} 20. Bd2 {[%emt 0:00:06]} Bxd2 {[%emt 0:06:07]} 21. Qxd2 {[%emt 0:00:08]} Ra6 {[%emt 0:01:09]} 22. Qb4 {[%emt 0:01:46]} f6 {[%emt 0:03:06]} 23. Re1 {[%emt 0:04:41]} Kf7 {[%emt 0:00:54]} 24. h5 {[%emt 0:00:14]} Rb8 {[%emt 0:01:32]} 25. Qd6 {[%emt 0:00:48]} Bb5 {[%emt 0:00:31]} 26. Qc7 {[%emt 0:00:48]} Ke7 {[%emt 0:02:30]} 27. h6 {[%emt 0:04:09]} Rg8 {[%emt 0:02:54]} 28. Kh2 {[%emt 0:04:25]} Bd3 {[%emt 0:03:21]} 29. hxg7 {[%emt 0:07:17]} Rxg7 {[%emt 0:00:21]} 30. gxf6+ {[%emt 0:00:22]} Kxf6 {[%emt 0:00:11]} 31. Qd8+ {[%emt 0:01:06]} Kf5 {[%emt 0:01:46]} 32. Ne5 {[%emt 0:04:40]} Bb5 {[%emt 0:04:21]} 33. Nxd7 {[%emt 0:01:37]} 1-0

[Event "45th Guernsey Open 2019"]
[Site "Vale"]
[Date "2019.10.24"]
[Round "5.2"]
[White "White, Nigel"]
[Black "Povah, Nigel E"]
[Result "0-1"]
[ECO "B01"]
[WhiteElo "1975"]
[BlackElo "2301"]
[Annotator "NA"]
[PlyCount "78"]
[EventDate "2019.10.20"]
[EventType "swiss"]
[EventCountry "GCI"]
[SourceTitle "playchess.com"]
[Source "ChessBase"]
[SourceQuality "1"]
[TimeControl "40/6000+30:2400+30"]

1. e4 {[%emt 0:00:00]} d5 {[%emt 0:00:00]} 2. exd5 {[%emt 0:00:00]} Qxd5 {[%emt 0:00:00]} 3. d4 {[%emt 0:00:08]} Nc6 {[%emt 0:05:06]} 4. Nf3 {[%emt 0:00:28]} Bg4 {[%emt 0:02:02]} 5. Be2 {[%emt 0:00:11]} e6 {[%emt 0:03:16]} 6. O-O {[%emt 0:00:59]} Nf6 {[%emt 0:14:19]} 7. Be3 {[%emt 0:02:52]} O-O-O {[%emt 0:03:27]} 8. c4 {[%emt 0:04:57]} Qf5 {[%emt 0:16:21]} 9. Nc3 {[%emt 0:00:36]} Bc5 {[%emt 0:11:15]} 10. Qa4 {[%emt 0:26:40]} Bxf3 {[%emt 0:04:13]} 11. dxc5 {[%emt 0:00:08]} Bxe2 {[%emt 0:02:43]} 12. Nxe2 {[%emt 0:00:01]} Ng4 {[%emt 0:09:22]} 13. Ng3 {[%emt 0:04:31]} Qe5 {[%emt 0:02:45]} 14. b4 {[%emt 0:00:28]} Nxe3 {[%emt 0:00:49]} 15. Rfe1 {[%emt 0:00:29]} Qc3 {[%emt 0:02:34]} 16. fxe3 {[%emt 0:00:14]} Qxb4 {[%emt 0:00:29]} 17. Qxb4 {[%emt 0:02:10]} Nxb4 {[%emt 0:00:20]} 18. Rab1 {[%emt 0:00:03]} Nd3 {[%emt 0:01:25]} 19. Rf1 {[%emt 0:00:01]} f5 {[%emt 0:02:00]} 20. Rb5 {[%emt 0:02:03]} a6 {[%emt 0:00:44]} 21. Ra5 {[%emt 0:00:49]} c6 {[%emt 0:01:02]} 22. Ne2 {[%emt 0:00:34]} g6 {[%emt 0:02:48]} 23. Nd4 {[%emt 0:03:58]} e5 {[%emt 0:00:48]} 24. Ne6 {[%emt 0:00:22]} Rd7 {[%emt 0:00:34]} 25. Ng5 {[%emt 0:01:39]} Re8 {[%emt 0:02:58]} 26. g3 {[%emt 0:00:20]} e4 {[%emt 0:00:43]} 27. h4 {[%emt 0:03:21]} Ne5 {[%emt 0:00:51]} 28. Ra4 {[%emt 0:00:46]} h6 {[%emt 0:01:11]} 29. Nh3 {[%emt 0:00:12]} Nf3+ {[%emt 0:00:26]} 30. Kh1 {[%emt 0:01:14]} Rd2 {[%emt 0:00:22]} 31. Rf2 {[%emt 0:00:52]} Red8 {[%emt 0:00:36]} 32. Kg2 {[%emt 0:01:31]} Ne5 {[%emt 0:05:05]} 33. Nf4 {[%emt 0:03:12]} Ng4 {[%emt 0:01:10]} 34. Rxd2 {[%emt 0:00:23]} Rxd2+ {[%emt 0:00:06]} 35. Kg1 {[%emt 0:00:05]} Nxe3 {[%emt 0:03:51]} 36. Nxg6 {[%emt 0:00:08]} Rg2+ {[%emt 0:00:25]} 37. Kh1 {[%emt 0:00:08]} Rxg3 {[%emt 0:00:14]} 38. Ra3 {[%emt 0:02:15]} Rxg6 {[%emt 0:00:58]} 39. Rxe3 {[%emt 0:00:05]} Kd7 0-1

[Event "45th Guernsey Open 2019"]
[Site "Vale"]
[Date "2019.10.24"]
[Round "5.3"]
[White "Bianco, Valerio"]
[Black "Van den Boogaart, Jan Maarten"]
[Result "1-0"]
[ECO "D10"]
[WhiteElo "2088"]
[BlackElo "2039"]
[Annotator "NA RC"]
[PlyCount "71"]
[EventDate "2019.10.20"]
[EventType "swiss"]
[EventCountry "GCI"]
[SourceTitle "playchess.com"]
[Source "ChessBase"]
[SourceQuality "1"]
[TimeControl "40/6000+30:2400+30"]

1. d4 {[%emt 0:00:00]} d5 {[%emt 0:00:00]} 2. c4 {[%emt 0:00:00]} c6 {[%emt 0:00:00]} 3. cxd5 {[%emt 0:00:00]} cxd5 {[%emt 0:00:05]} 4. Bf4 {[%emt 0:00:00]} Nc6 {[%emt 0:01:22]} 5. e3 {[%emt 0:00:03]} Nf6 {[%emt 0:00:34]} 6. Nc3 {[%emt 0:00:07]} Bf5 {[%emt 0:01:11]} 7. Qb3 {[%emt 0:00:30]} Na5 {[%emt 0:02:50]} 8. Qa4+ {[%emt 0:00:08]} Bd7 {[%emt 0:00:24]} 9. Qc2 {[%emt 0:00:24]} e6 {[%emt 0:00:50]} 10. Bd3 {[%emt 0:00:55]} Nc6 {[%emt 0:03:16]} 11. a3 {[%emt 0:02:17]} Nh5 {[%emt 0:00:45]} 12. Be5 {[%emt 0:05:00]} f6 {[%emt 0:00:39]} 13. Bg3 {[%emt 0:13:16]} f5 {[%emt 0:02:00]} 14. Nge2 {[%emt 0:11:08]} Be7 {[%emt 0:08:09]} 15. f3 {[%emt 0:07:39]} Nxg3 {[%emt 0:14:39]} 16. hxg3 {[%emt 0:00:23]} Qb6 {[%emt 0:14:49]} 17. Na4 {[%emt 0:18:14]} Qa5+ {[%emt 0:03:12]} 18. b4 {[%emt 0:03:08]} Bxb4+ {[%emt 0:04:16]} 19. Kf2 {[%emt 0:07:00]} Bd6 {[%emt 0:04:32]} 20. Nc5 {[%emt 0:02:29]} Bxc5 {[%emt 0:05:04]} 21. dxc5 {[%emt 0:02:03]} Ne5 {[%emt 0:02:25]} 22. Rhb1 {[%emt 0:02:27]} Ba4 {[%emt 0:04:03]} 23. Rb3 {[%emt 0:01:10]} Bxb3 {[%emt 0:01:09]} 24. Qxb3 {[%emt 0:00:05]} O-O {[%emt 0:04:59]} 25. Nf4 {[%emt 0:01:35]} Nxd3+ {[%emt 0:05:14]} 26. Qxd3 {[%emt 0:00:08]} Rfe8 {[%emt 0:03:29]} 27. Rb1 {[%emt 0:01:00]} Qxc5 {[%emt 0:04:06]} 28. Rxb7 {[%emt 0:00:28]} Rab8 {[%emt 0:00:27]} 29. Nxe6 {[%emt 0:02:10]} Qc1 {[%emt 0:12:37]} 30. Rxg7+ {[%emt 0:03:30]} Kh8 {[%emt 0:00:12]} 31. Rxh7+ {[%emt 0:00:33]} Kg8 {[%emt 0:00:18]} 32. Rh8+ {[%emt 0:15:43]} Kf7 {[%emt 0:00:08]} 33. Qxf5+ {[%emt 0:00:07]} Ke7 {[%emt 0:00:06]} 34. Rh7+ {[%emt 0:00:37]} Kd6 {[%emt 0:00:08]} 35. Qf4+ {[%emt 0:00:52]} Kxe6 {[%emt 0:00:13]} 36. Qf7+ {[%emt 0:00:33]} 1-0

[Event "45th Guernsey Open 2019"]
[Site "Vale"]
[Date "2019.10.24"]
[Round "5.4"]
[White "Havenaar, Jan"]
[Black "Heppell, Ian N"]
[Result "1/2-1/2"]
[ECO "C26"]
[WhiteElo "2091"]
[BlackElo "1995"]
[Annotator "NA"]
[PlyCount "62"]
[EventDate "2019.10.20"]
[EventType "swiss"]
[EventCountry "GCI"]
[SourceTitle "playchess.com"]
[Source "ChessBase"]
[SourceQuality "1"]
[TimeControl "40/6000+30:2400+30"]

1. Nc3 {[%emt 0:00:00]} Nf6 {[%emt 0:00:00]} 2. e4 {[%emt 0:01:04]} e5 {[%emt 0:00:59]} 3. g3 {[%emt 0:00:44]} d5 {[%emt 0:05:11]} 4. exd5 {[%emt 0:00:15]} c6 {[%emt 0:02:09]} 5. Qe2 {[%emt 0:04:47]} cxd5 {[%emt 0:01:36]} 6. Qxe5+ {[%emt 0:00:10]} Be7 {[%emt 0:00:06]} 7. Nb5 {[%emt 0:06:18]} O-O {[%emt 0:02:20]} 8. Qc7 {[%emt 0:00:08]} Qe8 {[%emt 0:01:50]} 9. Be2 {[%emt 0:03:51]} Nc6 {[%emt 0:11:48]} 10. c3 {[%emt 0:02:16]} a6 {[%emt 0:26:44]} 11. Nd6 {[%emt 0:00:56]} Bxd6 {[%emt 0:01:37]} 12. Qxd6 {[%emt 0:00:04]} d4 {[%emt 0:02:09]} 13. d3 {[%emt 0:10:40]} Bf5 {[%emt 0:04:02]} 14. Bg5 {[%emt 0:03:47]} Rd8 {[%emt 0:05:06]} 15. Qf4 {[%emt 0:00:24]} Bxd3 {[%emt 0:00:14]} 16. Bxf6 {[%emt 0:00:06]} gxf6 {[%emt 0:01:13]} 17. Qg4+ {[%emt 0:02:37]} Bg6 {[%emt 0:02:36]} 18. O-O-O {[%emt 0:01:14]} dxc3 {[%emt 0:04:21]} 19. bxc3 {[%emt 0:01:55]} Qe5 {[%emt 0:01:15]} 20. Kb2 {[%emt 0:01:05]} Rxd1 {[%emt 0:01:20]} 21. Bxd1 {[%emt 0:00:12]} Rd8 {[%emt 0:02:57]} 22. Nf3 {[%emt 0:04:29]} Qb5+ {[%emt 0:01:44]} 23. Bb3 {[%emt 0:02:37]} Qe2+ {[%emt 0:03:21]} 24. Ka3 {[%emt 0:00:45]} Qxf2 {[%emt 0:01:57]} 25. Rd1 {[%emt 0:02:34]} Qc5+ {[%emt 0:05:23]} 26. Kb2 {[%emt 0:00:20]} Qf2+ {[%emt 0:04:42]} 27. Ka3 {[%emt 0:00:05]} Qc5+ {[%emt 0:02:40]} 28. Kb2 {[%emt 0:00:13]} Rxd1 {[%emt 0:00:31]} 29. Bxd1 {[%emt 0:00:06]} Qf5 {[%emt 0:00:23]} 30. Qxf5 {[%emt 0:02:16]} Bxf5 {[%emt 0:00:05]} 31. Nd4 {[%emt 0:00:18]} Be4 {[%emt 0:01:30]} 1/2-1/2

[Event "45th Guernsey Open 2019"]
[Site "Vale"]
[Date "2019.10.24"]
[Round "5.5"]
[White "Kwossek, Georg"]
[Black "Curtis, John"]
[Result "1/2-1/2"]
[ECO "A41"]
[WhiteElo "1984"]
[BlackElo "2292"]
[Annotator "NA RC"]
[PlyCount "53"]
[EventDate "2019.10.20"]
[EventType "swiss"]
[EventCountry "GCI"]
[SourceTitle "playchess.com"]
[Source "ChessBase"]
[SourceQuality "1"]
[TimeControl "40/6000+30:2400+30"]

1. Nf3 {[%emt 0:00:00]} d6 {[%emt 0:00:00]} 2. d4 {[%emt 0:00:00]} Bg4 {[%emt 0:00:03]} 3. c4 {[%emt 0:01:00]} Nd7 {[%emt 0:00:21]} 4. Nc3 {[%emt 0:00:58]} Bxf3 {[%emt 0:00:17]} 5. gxf3 {[%emt 0:00:42]} g6 {[%emt 0:00:51]} 6. Bg2 {[%emt 0:09:00]} Bg7 {[%emt 0:00:24]} 7. f4 {[%emt 0:00:12]} c6 {[%emt 0:01:34]} 8. e3 {[%emt 0:08:48]} e6 {[%emt 0:14:22]} 9. e4 {[%emt 0:10:00]} Ne7 {[%emt 0:03:54]} 10. Be3 {[%emt 0:02:35]} Qa5 {[%emt 0:11:52]} 11. a3 {[%emt 0:07:52]} c5 {[%emt 0:04:39]} 12. O-O {[%emt 0:01:33]} O-O {[%emt 0:16:06]} 13. Nb5 {[%emt 0:05:34]} cxd4 {[%emt 0:16:34]} 14. Bxd4 {[%emt 0:04:59]} d5 {[%emt 0:03:19]} 15. b4 {[%emt 0:06:55]} Qd8 {[%emt 0:00:39]} 16. Bxg7 {[%emt 0:04:56]} Kxg7 {[%emt 0:00:05]} 17. cxd5 {[%emt 0:02:07]} exd5 {[%emt 0:00:04]} 18. Qd4+ {[%emt 0:00:19]} Nf6 {[%emt 0:01:15]} 19. e5 {[%emt 0:02:23]} Nh5 {[%emt 0:02:37]} 20. Nd6 {[%emt 0:15:26]} Kg8 {[%emt 0:03:57]} 21. b5 {[%emt 0:02:03]} Qd7 {[%emt 0:03:25]} 22. h3 {[%emt 0:08:07]} Rad8 {[%emt 0:05:51]} 23. Rad1 {[%emt 0:02:04]} Nf5 {[%emt 0:03:17]} 24. Qxd5 {[%emt 0:02:11]} Nxf4 {[%emt 0:00:11]} 25. Qxb7 {[%emt 0:01:01]} Qe6 {[%emt 0:06:26]} 26. Qf3 {[%emt 0:03:21]} g5 {[%emt 0:04:10]} 27. Nxf5 {[%emt 0:01:41]} 1/2-1/2

[Event "45th Guernsey Open 2019"]
[Site "Vale"]
[Date "2019.10.24"]
[Round "5.6"]
[White "Purdon, Colin"]
[Black "Thurlow, Kevin J"]
[Result "1/2-1/2"]
[ECO "A57"]
[WhiteElo "1993"]
[BlackElo "2021"]
[Annotator "NA RC"]
[PlyCount "87"]
[EventDate "2019.10.20"]
[EventType "swiss"]
[EventCountry "GCI"]
[SourceTitle "playchess.com"]
[Source "ChessBase"]
[SourceQuality "1"]
[TimeControl "40/6000+30:2400+30"]

1. d4 {[%emt 0:00:00]} Nf6 {[%emt 0:00:00]} 2. c4 {[%emt 0:00:00]} c5 {[%emt 0:00:05]} 3. d5 {[%emt 0:00:00]} b5 {[%emt 0:00:04]} 4. Nf3 {[%emt 0:00:42]} bxc4 {[%emt 0:01:30]} 5. Nc3 {[%emt 0:01:59]} g6 {[%emt 0:00:33]} 6. e4 {[%emt 0:00:40]} d6 {[%emt 0:00:13]} 7. Bxc4 {[%emt 0:07:33]} Bg7 {[%emt 0:01:15]} 8. O-O {[%emt 0:00:28]} Nbd7 {[%emt 0:00:49]} 9. Re1 {[%emt 0:07:16] A57: Benko/Volga Gambit} (9. Bg5 O-O 10. Qd2 Nb6 11. Bd3 a5 12. Rfe1 Bg4 13. Nh4 a4 14. Bh6 e5 15. dxe6 Bxe6 16. Bxg7 Kxg7 17. Rad1 Ng4 {½-½ (41) Bigaliev,R (2427)-Pridorozhni,A (2588) Yaroslavl 2019}) 9... Ng4 {[%emt 0:03:34]} 10. h3 {[%emt 0:05:21]} Nge5 {[%emt 0:00:10]} 11. Nxe5 {[%emt 0:00:29]} Nxe5 {[%emt 0:00:15]} 12. Bf1 $146 {[%emt 0:11:14]} ({Predecessor:} 12. Bb5+ Bd7 13. Be2 Bc8 14. f4 Nd7 15. Be3 O-O 16. Qd2 Rb8 17. Rec1 a6 18. b3 Rb4 19. Bd3 Bd4 20. Bxd4 Rxd4 21. Qc2 Qb6 22. a3 Rxd3 23. Qxd3 c4+ {0-1 (23) Svec,L (1673)-Reimer,K (1528) Liberec 2018}) 12... O-O {[%emt 0:01:19]} 13. Be3 {[%emt 0:09:56]} Qa5 {[%emt 0:04:45]} 14. f4 {[%emt 0:06:20]} Nd7 {[%emt 0:03:44]} 15. Qd2 {[%emt 0:00:27]} Rb8 {[%emt 0:03:00]} 16. Rac1 {[%emt 0:05:55]} Ba6 {[%emt 0:00:48]} 17. Bxa6 Qxa6 {[%emt 0:00:17]} 18. Rc2 {[%emt 0:12:47]} Rb4 {[%emt 0:06:36]} 19. e5 {[%emt 0:02:12]} dxe5 {[%emt 0:05:41]} 20. fxe5 {[%emt 0:00:16]} Bxe5 {[%emt 0:06:09]} 21. Bxc5 {[%emt 0:01:36]} Nxc5 {[%emt 0:01:30]} 22. Rxe5 {[%emt 0:00:11]} Nd3 {[%emt 0:07:29]} 23. Rxe7 {[%emt 0:05:46]} Nxb2 {[%emt 0:07:13]} 24. Qf2 {[%emt 0:04:58]} Nd3 {[%emt 0:03:30]} 25. Qe3 {[%emt 0:06:13]} Rb6 {[%emt 0:04:01]} 26. Rd2 {[%emt 0:02:32]} Nb2 {[%emt 0:03:57]} 27. Qd4 {[%emt 0:01:48]} Nc4 {[%emt 0:01:15]} 28. Rde2 {[%emt 0:05:37]} Nd6 {[%emt 0:01:46]} 29. R7e5 {[%emt 0:00:30]} Qa3 {[%emt 0:04:27]} 30. Kh2 {[%emt 0:02:41]} Nf5 {[%emt 0:04:59]} 31. Qd2 {[%emt 0:00:58]} Nd6 {[%emt 0:02:59]} 32. Qd4 {[%emt 0:04:05]} Nf5 {[%emt 0:09:19]} 33. Qd2 {[%emt 0:00:21]} Qd6 {[%emt 0:03:52]} 34. Qf4 {[%emt 0:01:48]} f6 {[%emt 0:09:39]} 35. R5e4 {[%emt 0:00:10]} Rc8 {[%emt 0:03:24]} 36. Re8+ {[%emt 0:01:44]} Rxe8 {[%emt 0:00:22]} 37. Rxe8+ {[%emt 0:00:07]} Kf7 {[%emt 0:00:06]} 38. Qxd6 {[%emt 0:00:26]} Nxd6 {[%emt 0:00:49]} 39. Rd8 {[%emt 0:02:44]} Ra6 {[%emt 0:04:08]} 40. a4 {[%emt 0:00:32]} Ke7 {[%emt 0:02:01]} 41. Rh8 {[%emt 0:40:45]} h5 {[%emt 0:41:43]} 42. Rb8 {[%emt 0:00:00]} f5 {[%emt 0:00:00]} 43. Rb2 {[%emt 0:00:00]} Ne4 $11 {[%emt 0:00:00]} 44. Re2 {[%emt 0:00:00]} 1/2-1/2

[Event "45th Guernsey Open 2019"]
[Site "Vale"]
[Date "2019.10.24"]
[Round "5.7"]
[White "Pleasants, Allan J"]
[Black "Van Dijk, Bram"]
[Result "1/2-1/2"]
[ECO "B12"]
[WhiteElo "2019"]
[BlackElo "1982"]
[Annotator "NA RC"]
[PlyCount "82"]
[EventDate "2019.10.20"]
[EventType "swiss"]
[EventCountry "GCI"]
[SourceTitle "playchess.com"]
[Source "ChessBase"]
[SourceQuality "1"]
[TimeControl "40/6000+30:2400+30"]

1. e4 {[%emt 0:00:00]} c6 {[%emt 0:00:14]} 2. d4 {[%emt 0:00:00]} g6 {[%emt 0:00:24]} 3. h3 {[%emt 0:02:35]} d5 {[%emt 0:00:32]} 4. Nc3 {[%emt 0:00:51]} dxe4 {[%emt 0:06:52]} 5. Nxe4 {[%emt 0:00:20]} Nd7 {[%emt 0:00:27]} 6. Nf3 {[%emt 0:03:32]} Bg7 {[%emt 0:04:52]} 7. Bd3 {[%emt 0:07:22]} Qc7 {[%emt 0:01:26]} 8. O-O {[%emt 0:04:53]} Ngf6 {[%emt 0:00:25]} 9. Nxf6+ {[%emt 0:07:35]} Nxf6 {[%emt 0:00:20]} 10. Re1 {[%emt 0:00:26]} O-O {[%emt 0:02:29]} 11. c3 {[%emt 0:02:49]} h6 {[%emt 0:06:09] B15: Caro-Kann: 3 Nc3: 3...g6 and 3...dxe4 4 Nxe4 Nf6 5 Nxf6+ exf6} (11... c5 12. Qe2 cxd4 13. Nxd4 Rd8 14. Nb5 Qc6 15. Nd4 Qc7 16. Nb5 Qc6 17. Nd4 Qc7 18. Nb5 Qc6 {½-½ (18) Radulski,J (2578)-Chatalbashev,B (2579) Borovetz 2008}) 12. Qe2 $146 {[%emt 0:05:57]} ({Predecessor:} 12. Ne5 Nd7 13. Ng4 Nf6 14. Nxh6+ Kh7 15. Ng4 Bxg4 16. hxg4 Rfe8 17. Qf3 Kg8 18. Bf4 {1-0 (28) Melia,S (2475)-Soydan,B (1762) Kocaeli 2014}) 12... e6 {[%emt 0:06:39]} 13. Ne5 {[%emt 0:05:55]} Nd5 {[%emt 0:00:32]} 14. c4 {[%emt 0:06:56]} Ne7 {[%emt 0:02:32]} 15. Bf4 {[%emt 0:05:56]} Qb6 {[%emt 0:03:44]} 16. Be3 {[%emt 0:03:51]} Qc7 {[%emt 0:03:34]} 17. Qd2 {[%emt 0:11:10]} Kh7 {[%emt 0:00:37]} 18. Bf4 {[%emt 0:01:56]} Qd8 {[%emt 0:04:48]} 19. Rad1 {[%emt 0:01:23]} Nf5 {[%emt 0:03:06]} 20. Bc2 {[%emt 0:04:02]} Qf6 {[%emt 0:06:17]} 21. Nf3 {[%emt 0:04:15]} Nh4 {[%emt 0:12:05]} 22. Nxh4 {[%emt 0:03:39]} Qxh4 {[%emt 0:00:11]} 23. Be5 {[%emt 0:03:16]} Rd8 {[%emt 0:03:43]} 24. Re4 {[%emt 0:04:10]} Qh5 {[%emt 0:01:36]} 25. Qf4 {[%emt 0:06:11]} Qf5 {[%emt 0:06:40]} 26. Qc1 {[%emt 0:02:08]} Qg5 {[%emt 0:03:49]} 27. Bf4 {[%emt 0:01:13]} Qh5 {[%emt 0:01:56]} 28. Bg3 {[%emt 0:00:57]} Kg8 {[%emt 0:06:45]} 29. Bc7 {[%emt 0:03:58]} Rd7 {[%emt 0:01:37]} 30. Be5 {[%emt 0:00:20]} b6 {[%emt 0:03:24]} 31. Ba4 {[%emt 0:04:05]} Bb7 {[%emt 0:00:11]} 32. Bxg7 {[%emt 0:00:15]} Kxg7 {[%emt 0:00:20]} 33. Qc3 {[%emt 0:01:00]} Kg8 {[%emt 0:02:30]} 34. Rde1 {[%emt 0:00:10]} Rdd8 {[%emt 0:03:08]} 35. Qe3 {[%emt 0:01:29]} Qg5 {[%emt 0:01:15]} 36. f4 {[%emt 0:01:43]} Qf6 {[%emt 0:01:18]} 37. Re5 {[%emt 0:00:05]} c5 {[%emt 0:01:21]} 38. dxc5 {[%emt 0:00:52]} bxc5 {[%emt 0:00:01]} 39. Rxc5 {[%emt 0:00:42]} Qxb2 {[%emt 0:00:10]} 40. Re2 {[%emt 0:00:41]} Qa1+ {[%emt 0:02:15]} 41. Kh2 $11 {[%emt 0:04:01]} Qd4 {[%emt 0:03:50]} 1/2-1/2

[Event "45th Guernsey Open 2019"]
[Site "Vale"]
[Date "2019.10.24"]
[Round "5.8"]
[White "Wager, John D"]
[Black "Morcom, Huw"]
[Result "1-0"]
[ECO "A56"]
[WhiteElo "2013"]
[BlackElo "1906"]
[Annotator "NA"]
[PlyCount "71"]
[EventDate "2019.10.20"]
[EventType "swiss"]
[EventCountry "GCI"]
[SourceTitle "playchess.com"]
[Source "ChessBase"]
[SourceQuality "1"]
[TimeControl "40/6000+30:2400+30"]

1. d4 {[%emt 0:00:00]} Nf6 {[%emt 0:00:02]} 2. c4 {[%emt 0:00:00]} c5 {[%emt 0:00:41]} 3. Nf3 {[%emt 0:00:00]} cxd4 {[%emt 0:02:20]} 4. Nxd4 {[%emt 0:00:00]} g6 {[%emt 0:00:39]} 5. Nc3 {[%emt 0:00:16]} Bg7 {[%emt 0:00:10]} 6. e4 {[%emt 0:01:09]} d6 {[%emt 0:00:13]} 7. Be2 {[%emt 0:00:27]} a6 {[%emt 0:00:28]} 8. O-O {[%emt 0:00:26]} O-O {[%emt 0:00:13]} 9. Be3 {[%emt 0:00:54]} Bd7 {[%emt 0:00:53]} 10. Rc1 {[%emt 0:01:55]} Nc6 {[%emt 0:00:08]} 11. a4 {[%emt 0:14:18]} Rc8 {[%emt 0:00:30]} 12. b3 {[%emt 0:01:18]} Re8 {[%emt 0:01:35]} 13. h3 {[%emt 0:02:07]} Qa5 {[%emt 0:00:43]} 14. f3 {[%emt 0:15:19]} Nh5 {[%emt 0:00:48]} 15. Nd5 {[%emt 0:10:29]} Nxd4 {[%emt 0:04:35]} 16. Bxd4 {[%emt 0:00:17]} Bxd4+ {[%emt 0:00:13]} 17. Qxd4 {[%emt 0:00:12]} Ng3 {[%emt 0:00:31]} 18. Rfe1 {[%emt 0:02:40]} Nxe2+ {[%emt 0:00:50]} 19. Rxe2 {[%emt 0:00:07]} Qc5 {[%emt 0:00:39]} 20. Qxc5 {[%emt 0:01:25]} Rxc5 {[%emt 0:00:18]} 21. e5 {[%emt 0:05:35]} Be6 {[%emt 0:00:27]} 22. Nf4 {[%emt 0:02:10]} Rxe5 {[%emt 0:00:12]} 23. Rxe5 {[%emt 0:00:15]} dxe5 {[%emt 0:00:07]} 24. Nxe6 {[%emt 0:00:28]} fxe6 {[%emt 0:00:06]} 25. Rd1 {[%emt 0:01:20]} Kf7 {[%emt 0:02:52]} 26. Kf2 {[%emt 0:00:16]} Rc8 {[%emt 0:00:46]} 27. Ke3 {[%emt 0:01:32]} b5 {[%emt 0:00:09]} 28. cxb5 {[%emt 0:01:23]} axb5 {[%emt 0:00:08]} 29. a5 {[%emt 0:00:41]} Rc3+ {[%emt 0:00:21]} 30. Rd3 {[%emt 0:01:14]} Rc6 {[%emt 0:01:43]} 31. b4 {[%emt 0:03:17]} Rc4 {[%emt 0:00:13]} 32. a6 {[%emt 0:03:26]} Rc7 {[%emt 0:00:42]} 33. h4 {[%emt 0:02:55]} Ra7 {[%emt 0:00:10]} 34. Ra3 {[%emt 0:00:16]} h6 {[%emt 0:00:22]} 35. Ke4 {[%emt 0:01:56]} Kf6 {[%emt 0:00:06]} 36. g4 {[%emt 0:00:40]} 1-0